[Event "EYTCC Open U18 2022"]
[Site "Thessaloniki"]
[Date "2022.07.16"]
[Round "5.5"]
[White "Budisavljevic, Luka"]
[Black "Borhy, Marcell"]
[Result "1-0"]
[ECO "B23"]
[WhiteElo "2511"]
[BlackElo "2411"]
[Annotator "ChessBase"]
[PlyCount "85"]
[EventDate "2022.07.12"]
[EventType "team-tourn"]
[EventCountry "GRE"]
[SourceTitle "playchess.com"]
[Source "ChessBase"]
[SourceQuality "1"]
[WhiteTeam "Serbia"]
[BlackTeam "Hungary"]
[WhiteTeamCountry "SRB"]
[BlackTeamCountry "HUN"]
[TimeControl "40/5400+30:1800+30"]

1. e4 {[%emt 0:00:45]} c5 {[%emt 0:00:27]} 2. Nc3 {[%emt 0:00:11]} a6 {[%emt 0:02:24]} 3. g3 {[%emt 0:00:16]} b5 {[%emt 0:00:28]} 4. Bg2 {[%emt 0:00:09]} Bb7 {[%emt 0:00:00]} 5. Nge2 {[%emt 0:00:32]} g6 {[%emt 0:02:56]} 6. d4 {[%emt 0:02:00]} cxd4 {[%emt 0:00:58]} 7. Nxd4 {[%emt 0:03:09]} Bg7 {[%emt 0:00:24]} 8. O-O {[%emt 0:02:42]} Nc6 {[%emt 0:02:05]} 9. Nxc6 {[%emt 0:10:47]} dxc6 {[%emt 0:05:18]} 10. Qe2 {[%emt 0:02:33]} b4 {[%emt 0:03:35]} 11. Rd1 {[%emt 0:02:09]} Qa5 {[%emt 0:00:52]} 12. Nb1 {[%emt 0:02:06]} Nf6 {[%emt 0:02:01]} 13. Nd2 {[%emt 0:10:07]} Qb5 {[%emt 0:13:13]} 14. Nc4 {[%emt 0:11:30]} Bc8 {[%emt 0:23:54]} 15. e5 {[%emt 0:03:34]} Nd5 {[%emt 0:03:27]} 16. a4 {[%emt 0:04:32]} bxa3 {[%emt 0:01:43]} 17. Nd6+ {[%emt 0:01:30]} exd6 {[%emt 0:00:16]} 18. c4 {[%emt 0:00:05]} Bg4 {[%emt 0:06:24]} 19. Qxg4 {[%emt 0:07:34]} axb2 {[%emt 0:00:08]} 20. Bxb2 {[%emt 0:01:21]} Qxb2 {[%emt 0:00:31]} 21. Rab1 {[%emt 0:04:15]} h5 {[%emt 0:12:34]} 22. Qg5 {[%emt 0:05:31]} Qc2 {[%emt 0:07:37]} 23. cxd5 {[%emt 0:01:28]} O-O {[%emt 0:01:01]} 24. dxc6 {[%emt 0:01:51]} Bxe5 {[%emt 0:00:32]} 25. Bd5 {[%emt 0:09:28]} Bd4 {[%emt 0:02:15]} 26. Qd2 {[%emt 0:01:11]} Qxd2 {[%emt 0:00:22]} 27. Rxd2 {[%emt 0:00:02]} Bc5 {[%emt 0:00:39]} 28. Re2 {[%emt 0:01:45]} Ra7 {[%emt 0:00:28]} 29. Rb7 {[%emt 0:01:25]} Rxb7 {[%emt 0:02:50]} 30. cxb7 {[%emt 0:00:03]} a5 {[%emt 0:00:25]} 31. Re7 {[%emt 0:00:35]} Ba7 {[%emt 0:00:06]} 32. Rc7 {[%emt 0:01:45]} Kg7 {[%emt 0:01:37]} 33. Rc8 {[%emt 0:00:49]} a4 {[%emt 0:01:43]} 34. Kf1 {[%emt 0:02:58]} a3 {[%emt 0:01:45]} 35. Ke2 {[%emt 0:00:46]} g5 {[%emt 0:00:53]} 36. f4 gxf4 {[%emt 0:00:57]} 37. gxf4 {[%emt 0:00:41]} Bb8 {[%emt 0:00:13]} 38. h4 {[%emt 0:01:03]} f5 {[%emt 0:01:18]} 39. Kd3 {[%emt 0:00:00]} Rh8 {[%emt 0:00:00]} 40. Kc2 {[%emt 0:00:00]} a2 {[%emt 0:00:00]} 41. Kb2 {[%emt 0:01:07]} Rf8 {[%emt 0:03:50]} 42. Kxa2 {[%emt 0:00:07]} Rh8 {[%emt 0:02:18]} 43. Kb3 {[%emt 0:00:07]} 1-0

[Event "EYTCC Open U18 2022"]
[Site "Thessaloniki"]
[Date "2022.07.16"]
[Round "5.6"]
[White "Juhasz, Agoston"]
[Black "Tadic, Stefan"]
[Result "1/2-1/2"]
[ECO "C55"]
[WhiteElo "2344"]
[BlackElo "2356"]
[Annotator "ChessBase"]
[PlyCount "100"]
[EventDate "2022.07.12"]
[EventType "team-tourn"]
[EventCountry "GRE"]
[SourceTitle "playchess.com"]
[Source "ChessBase"]
[SourceQuality "1"]
[WhiteTeam "Hungary"]
[BlackTeam "Serbia"]
[WhiteTeamCountry "HUN"]
[BlackTeamCountry "SRB"]
[TimeControl "40/5400+30:1800+30"]

1. e4 {[%emt 0:00:02]} e5 {[%emt 0:00:41]} 2. Nf3 {[%emt 0:00:12]} Nc6 {[%emt 0:00:38]} 3. Bc4 {[%emt 0:00:32]} Nf6 {[%emt 0:00:34]} 4. d3 {[%emt 0:00:25]} Be7 {[%emt 0:00:38]} 5. O-O {[%emt 0:00:33]} O-O {[%emt 0:00:31]} 6. Nc3 {[%emt 0:01:18]} d6 {[%emt 0:01:01]} 7. a4 {[%emt 0:01:30]} Be6 {[%emt 0:08:09]} 8. Nd5 {[%emt 0:02:24]} Bxd5 {[%emt 0:13:19]} 9. exd5 {[%emt 0:00:16]} Nb4 {[%emt 0:04:07]} 10. d4 {[%emt 0:00:28]} e4 {[%emt 0:09:08]} 11. Nd2 {[%emt 0:02:10]} Qc8 {[%emt 0:15:27]} 12. c3 {[%emt 0:09:49]} Nbxd5 {[%emt 0:00:11]} 13. Nxe4 {[%emt 0:03:20]} Nxe4 {[%emt 0:00:05]} 14. Bxd5 {[%emt 0:00:07]} Nf6 {[%emt 0:00:07]} 15. Bf3 {[%emt 0:11:35]} d5 {[%emt 0:02:34]} 16. Re1 {[%emt 0:04:43]} Qd7 {[%emt 0:05:21]} 17. Bg5 {[%emt 0:09:20]} Rae8 {[%emt 0:03:15]} 18. Qd3 {[%emt 0:19:50]} c6 {[%emt 0:08:51]} 19. b4 {[%emt 0:01:58]} h6 {[%emt 0:05:51]} 20. Bh4 {[%emt 0:02:45]} Nh7 {[%emt 0:03:41]} 21. Bxe7 {[%emt 0:08:03]} Rxe7 {[%emt 0:00:01]} 22. g3 {[%emt 0:02:12]} Ng5 {[%emt 0:01:30]} 23. Bg2 {[%emt 0:01:37]} f5 {[%emt 0:03:42]} 24. c4 {[%emt 0:08:04]} Re4 {[%emt 0:04:49]} 25. cxd5 {[%emt 0:02:39]} cxd5 {[%emt 0:00:04]} 26. f3 {[%emt 0:01:40]} Rxe1+ {[%emt 0:00:07]} 27. Rxe1 {[%emt 0:00:02]} Qxa4 {[%emt 0:06:24]} 28. Qc3 {[%emt 0:01:00]} Qd7 {[%emt 0:01:04]} 29. h4 {[%emt 0:00:41]} Nh7 {[%emt 0:01:01]} 30. Qc5 {[%emt 0:02:21]} b6 {[%emt 0:00:11]} 31. Qe7 {[%emt 0:00:58]} Nf6 {[%emt 0:01:56]} 32. Qxd7 {[%emt 0:01:04]} Nxd7 {[%emt 0:00:01]} 33. Re7 {[%emt 0:00:12]} Rf7 {[%emt 0:00:00]} 34. Re8+ {[%emt 0:00:17]} Rf8 {[%emt 0:00:01]} 35. Re7 {[%emt 0:00:02]} Rf7 {[%emt 0:00:04]} 36. Re8+ {[%emt 0:00:09]} Kh7 {[%emt 0:01:25]} 37. f4 {[%emt 0:02:55]} Nf6 {[%emt 0:00:01]} 38. Rd8 {[%emt 0:00:10]} Ne4 {[%emt 0:02:00]} 39. Kh2 {[%emt 0:01:52]} a5 {[%emt 0:00:36]} 40. bxa5 {[%emt 0:00:00]} bxa5 {[%emt 0:00:00]} 41. Ra8 {[%emt 0:17:49]} Nf6 {[%emt 0:21:41]} 42. Rxa5 {[%emt 0:00:23]} Rd7 {[%emt 0:00:12]} 43. Bf3 {[%emt 0:00:44]} h5 {[%emt 0:01:16]} 44. Kg2 {[%emt 0:01:01]} Kg6 {[%emt 0:00:21]} 45. Kf2 {[%emt 0:00:47]} Kf7 {[%emt 0:00:49]} 46. Ke3 {[%emt 0:01:17]} Ke6 {[%emt 0:00:06]} 47. Ra6+ {[%emt 0:01:01]} Ke7 {[%emt 0:00:24]} 48. Ra5 {[%emt 0:01:43]} Ke6 {[%emt 0:00:13]} 49. Ra6+ {[%emt 0:00:14]} Ke7 {[%emt 0:00:02]} 50. Ra5 {[%emt 0:00:39]} Ke6 {[%emt 0:04:36]} 1/2-1/2

[Event "EYTCC Open U18 2022"]
[Site "Thessaloniki"]
[Date "2022.07.16"]
[Round "5.7"]
[White "Ivanovic, Marko"]
[Black "Palczert, Matyas"]
[Result "0-1"]
[ECO "A05"]
[WhiteElo "2310"]
[BlackElo "2321"]
[Annotator "ChessBase"]
[PlyCount "68"]
[EventDate "2022.07.12"]
[EventType "team-tourn"]
[EventCountry "GRE"]
[SourceTitle "playchess.com"]
[Source "ChessBase"]
[SourceQuality "1"]
[WhiteTeam "Serbia"]
[BlackTeam "Hungary"]
[WhiteTeamCountry "SRB"]
[BlackTeamCountry "HUN"]
[TimeControl "40/5400+30:1800+30"]

1. Nf3 {[%emt 0:00:57]} Nf6 {[%emt 0:00:11]} 2. g3 {[%emt 0:00:05]} d5 {[%emt 0:00:21]} 3. Bg2 {[%emt 0:00:07]} e6 {[%emt 0:00:12]} 4. O-O {[%emt 0:00:10]} Be7 {[%emt 0:00:37]} 5. d3 {[%emt 0:00:13]} O-O {[%emt 0:00:31]} 6. Nbd2 {[%emt 0:00:07]} Nc6 {[%emt 0:00:44]} 7. e4 {[%emt 0:02:55]} dxe4 {[%emt 0:02:57]} 8. dxe4 {[%emt 0:00:32]} e5 {[%emt 0:00:27]} 9. c3 {[%emt 0:01:07]} a5 {[%emt 0:01:22]} 10. Qc2 {[%emt 0:08:08]} Bc5 {[%emt 0:08:30]} 11. Nc4 {[%emt 0:03:34]} Qe7 {[%emt 0:01:04]} 12. a4 {[%emt 0:01:39]} Rd8 {[%emt 0:05:36]} 13. Ne3 {[%emt 0:04:48]} h6 14. Nd5 {[%emt 0:23:59]} Nxd5 {[%emt 0:13:48]} 15. exd5 {[%emt 0:00:11]} Rxd5 {[%emt 0:12:59]} 16. Ng5 {[%emt 0:08:13]} e4 {[%emt 0:01:10]} 17. Nxe4 {[%emt 0:00:04]} Bf5 {[%emt 0:02:12]} 18. Kh1 {[%emt 0:02:19]} Re8 {[%emt 0:06:00]} 19. f3 {[%emt 0:01:25]} Bb6 {[%emt 0:04:48]} 20. g4 {[%emt 0:05:10]} Bg6 {[%emt 0:00:53]} 21. Bf4 {[%emt 0:02:09]} Ne5 {[%emt 0:04:36]} 22. Qb3 {[%emt 0:06:42]} Red8 {[%emt 0:03:00]} 23. Bxe5 {[%emt 0:03:54]} Rxe5 {[%emt 0:01:04]} 24. Rad1 {[%emt 0:00:56]} Rxd1 {[%emt 0:03:37]} 25. Rxd1 {[%emt 0:00:16]} Bxe4 {[%emt 0:02:25]} 26. fxe4 {[%emt 0:00:22]} Rxe4 {[%emt 0:01:25]} 27. Qb5 {[%emt 0:00:34]} Re5 {[%emt 0:03:55]} 28. Qd3 {[%emt 0:06:38]} c6 {[%emt 0:00:43]} 29. Bf3 {[%emt 0:01:31]} Re3 {[%emt 0:03:38]} 30. Qf5 {[%emt 0:00:37]} g6 {[%emt 0:02:22]} 31. Qc8+ {[%emt 0:00:14]} Kg7 {[%emt 0:00:38]} 32. Kg2 {[%emt 0:04:45]} Rxf3 {[%emt 0:01:00]} 33. Kxf3 {[%emt 0:00:10]} Qe3+ {[%emt 0:00:11]} 34. Kg2 {[%emt 0:00:01]} Qf2+ {[%emt 0:00:25]} 0-1

[Event "EYTCC Open U18 2022"]
[Site "Thessaloniki"]
[Date "2022.07.16"]
[Round "5.8"]
[White "Pasztor, Balazs"]
[Black "Ljepic, Andrej"]
[Result "1/2-1/2"]
[ECO "C10"]
[WhiteElo "2336"]
[BlackElo "2234"]
[Annotator "ChessBase"]
[PlyCount "107"]
[EventDate "2022.07.12"]
[EventType "team-tourn"]
[EventCountry "GRE"]
[SourceTitle "playchess.com"]
[Source "ChessBase"]
[SourceQuality "1"]
[WhiteTeam "Hungary"]
[BlackTeam "Serbia"]
[WhiteTeamCountry "HUN"]
[BlackTeamCountry "SRB"]
[TimeControl "40/5400+30:1800+30"]

1. e4 {[%emt 0:00:03]} e6 {[%emt 0:00:18]} 2. d4 {[%emt 0:00:07]} d5 {[%emt 0:00:31]} 3. Nc3 {[%emt 0:00:08]} dxe4 {[%emt 0:00:12]} 4. Nxe4 {[%emt 0:00:11]} Bd7 {[%emt 0:00:17]} 5. Nf3 {[%emt 0:00:10]} Bc6 {[%emt 0:00:15]} 6. Bd3 {[%emt 0:00:10]} Nd7 {[%emt 0:00:24]} 7. c3 {[%emt 0:00:19]} Ngf6 {[%emt 0:00:34]} 8. Nxf6+ {[%emt 0:00:11]} Nxf6 {[%emt 0:00:11]} 9. O-O {[%emt 0:00:14]} Bxf3 {[%emt 0:00:44]} 10. Qxf3 {[%emt 0:00:08]} c6 {[%emt 0:00:21]} 11. a4 {[%emt 0:00:27]} Qc7 {[%emt 0:05:10]} 12. Re1 {[%emt 0:04:49]} Be7 {[%emt 0:07:27]} 13. a5 {[%emt 0:08:51]} O-O {[%emt 0:04:37]} 14. h4 {[%emt 0:13:50]} Rfd8 {[%emt 0:14:33]} 15. g3 {[%emt 0:16:13]} Nd5 {[%emt 0:19:00]} 16. Bd2 {[%emt 0:18:22]} b5 {[%emt 0:07:52]} 17. axb6 {[%emt 0:02:35]} axb6 {[%emt 0:02:55]} 18. Be4 {[%emt 0:05:28]} Rxa1 {[%emt 0:06:38]} 19. Rxa1 {[%emt 0:00:05]} c5 {[%emt 0:01:02]} 20. dxc5 {[%emt 0:17:31]} bxc5 {[%emt 0:01:32]} 21. Bc2 {[%emt 0:05:32]} c4 {[%emt 0:05:36]} 22. Rd1 {[%emt 0:01:09]} g6 {[%emt 0:06:55]} 23. Kg2 {[%emt 0:00:53]} Bc5 {[%emt 0:03:40]} 24. Bg5 {[%emt 0:02:01]} Rb8 {[%emt 0:03:15]} 25. Bc1 {[%emt 0:00:57]} Nb6 {[%emt 0:03:52]} 26. Qe4 {[%emt 0:00:53]} e5 {[%emt 0:02:03]} 27. b4 {[%emt 0:01:18]} f5 {[%emt 0:02:11]} 28. Qf3 {[%emt 0:00:08]} Bf8 {[%emt 0:00:32]} 29. Be3 {[%emt 0:00:28]} e4 {[%emt 0:00:47]} 30. Qe2 {[%emt 0:01:05]} Bg7 {[%emt 0:00:22]} 31. Bf4 {[%emt 0:00:48]} Be5 {[%emt 0:00:08]} 32. Bxe5 {[%emt 0:00:26]} Qxe5 {[%emt 0:00:01]} 33. Qe3 {[%emt 0:00:20]} Kg7 {[%emt 0:01:48]} 34. Qd4 {[%emt 0:01:06]} Qxd4 {[%emt 0:00:18]} 35. Rxd4 {[%emt 0:00:03]} Kf6 {[%emt 0:00:18]} 36. Bd1 {[%emt 0:00:39]} Ke5 {[%emt 0:00:36]} 37. Be2 {[%emt 0:00:31]} Rc8 {[%emt 0:00:01]} 38. f3 {[%emt 0:00:27]} exf3+ {[%emt 0:01:19]} 39. Kxf3 {[%emt 0:00:10]} Ra8 {[%emt 0:01:08]} 40. Rd2 {[%emt 0:00:00]} Ra3 {[%emt 0:00:00]} 41. Rc2 {[%emt 0:04:36]} Nd5 {[%emt 0:05:01]} 42. Bxc4 {[%emt 0:05:01]} Nxc3 {[%emt 0:00:36]} 43. Ke3 {[%emt 0:09:21]} Ne4+ {[%emt 0:08:07]} 44. Bd3 {[%emt 0:00:08]} Nxg3 {[%emt 0:00:50]} 45. Rc5+ {[%emt 0:02:22]} Kd6 {[%emt 0:00:20]} 46. Kd4 {[%emt 0:01:10]} f4 {[%emt 0:04:41]} 47. Rd5+ {[%emt 0:00:49]} Ke7 {[%emt 0:05:43]} 48. Re5+ {[%emt 0:03:13]} Kd6 {[%emt 0:03:35]} 49. Rd5+ {[%emt 0:00:06]} Kc7 {[%emt 0:02:35]} 50. Rc5+ {[%emt 0:00:13]} Kb6 {[%emt 0:01:43]} 51. Rb5+ {[%emt 0:00:03]} Kc6 {[%emt 0:00:39]} 52. Rc5+ {[%emt 0:00:06]} Kb6 {[%emt 0:00:50]} 53. Rb5+ {[%emt 0:00:01]} Kc6 {[%emt 0:00:11]} 54. Rc5+ {[%emt 0:00:07]} 1/2-1/2

[Event "EYTCC Open U18 2022"]
[Site "Thessaloniki"]
[Date "2022.07.16"]
[Round "5.9"]
[White "Fromm, Marius"]
[Black "Trost, Edvin"]
[Result "1-0"]
[ECO "B30"]
[WhiteElo "2391"]
[BlackElo "2345"]
[Annotator "ChessBase"]
[PlyCount "149"]
[EventDate "2022.07.12"]
[EventType "team-tourn"]
[EventCountry "GRE"]
[SourceTitle "playchess.com"]
[Source "ChessBase"]
[SourceQuality "1"]
[WhiteTeam "Germany"]
[BlackTeam "Sweden"]
[WhiteTeamCountry "GER"]
[BlackTeamCountry "SWE"]
[TimeControl "40/5400+30:1800+30"]

1. e4 {[%emt 0:00:03]} c5 {[%emt 0:00:33]} 2. Nf3 {[%emt 0:00:06]} Nc6 {[%emt 0:00:27]} 3. Bb5 {[%emt 0:00:07]} e6 {[%emt 0:01:10]} 4. Bxc6 {[%emt 0:01:57]} bxc6 {[%emt 0:00:26]} 5. d3 {[%emt 0:00:04]} Ne7 {[%emt 0:00:54]} 6. h4 {[%emt 0:00:19]} h5 {[%emt 0:02:03]} 7. e5 {[%emt 0:00:14]} f6 {[%emt 0:00:50]} 8. Nbd2 {[%emt 0:03:33]} fxe5 {[%emt 0:02:11]} 9. Nc4 {[%emt 0:00:16]} d6 {[%emt 0:02:19]} 10. Bg5 {[%emt 0:01:33]} Ba6 {[%emt 0:03:23]} 11. Qe2 {[%emt 0:09:39]} Qc7 12. a3 {[%emt 0:13:48]} Nf5 {[%emt 0:14:47]} 13. b4 {[%emt 0:10:06]} cxb4 {[%emt 0:18:54]} 14. axb4 {[%emt 0:00:02]} Bxc4 {[%emt 0:00:07]} 15. dxc4 {[%emt 0:00:04]} d5 {[%emt 0:00:23]} 16. Qxe5 {[%emt 0:07:25]} Bxb4+ {[%emt 0:00:15]} 17. Bd2 {[%emt 0:00:08]} Bxd2+ {[%emt 0:07:05]} 18. Kxd2 {[%emt 0:00:02]} Qxe5 {[%emt 0:01:14]} 19. Nxe5 {[%emt 0:00:02]} Nd6 {[%emt 0:02:25]} 20. cxd5 {[%emt 0:03:49]} cxd5 {[%emt 0:00:13]} 21. Ra6 {[%emt 0:00:25]} Ne4+ {[%emt 0:00:16]} 22. Ke3 {[%emt 0:01:00]} O-O {[%emt 0:01:01]} 23. f3 {[%emt 0:05:35]} Ng3 {[%emt 0:01:24]} 24. Rh3 {[%emt 0:01:02]} Nf5+ {[%emt 0:00:48]} 25. Kd3 {[%emt 0:00:12]} d4 {[%emt 0:04:09]} 26. g4 {[%emt 0:11:47]} hxg4 {[%emt 0:01:55]} 27. fxg4 {[%emt 0:00:06]} Ne3 {[%emt 0:00:13]} 28. c4 {[%emt 0:02:47]} Rac8 {[%emt 0:06:51]} 29. Rxa7 {[%emt 0:06:35]} Rf1 {[%emt 0:00:47]} 30. Rf3 {[%emt 0:08:57]} Rxf3 {[%emt 0:02:52]} 31. Nxf3 {[%emt 0:00:15]} Nxc4 {[%emt 0:01:20]} 32. Kxd4 {[%emt 0:00:43]} e5+ {[%emt 0:10:28]} 33. Ke4 {[%emt 0:01:40]} Rf8 {[%emt 0:01:40]} 34. Ng5 {[%emt 0:00:32]} Re8 {[%emt 0:03:02]} 35. Rd7 {[%emt 0:01:40]} Nb6 {[%emt 0:00:45]} 36. Rc7 {[%emt 0:00:40]} Nc8 {[%emt 0:00:49]} 37. Rc6 {[%emt 0:01:31]} Na7 {[%emt 0:00:16]} 38. Rb6 {[%emt 0:03:47]} Nc8 {[%emt 0:00:08]} 39. Ra6 {[%emt 0:00:46]} Re7 {[%emt 0:01:47]} 40. Ra8 {[%emt 0:00:00]} Re8 {[%emt 0:00:00]} 41. Ra6 {[%emt 0:03:24]} Re7 {[%emt 0:00:42]} 42. h5 {[%emt 0:07:45]} Ra7 {[%emt 0:04:31]} 43. Re6 {[%emt 0:00:41]} Re7 {[%emt 0:00:12]} 44. Rc6 {[%emt 0:00:36]} Na7 {[%emt 0:00:47]} 45. Ra6 {[%emt 0:07:34]} Nc8 {[%emt 0:00:49]} 46. Nf3 {[%emt 0:01:37]} Ra7 {[%emt 0:03:14]} 47. Re6 {[%emt 0:00:03]} Ra4+ {[%emt 0:01:00]} 48. Kxe5 {[%emt 0:00:15]} Kf8 {[%emt 0:00:22]} 49. Kf5 {[%emt 0:01:20]} Ne7+ {[%emt 0:00:15]} 50. Kg5 {[%emt 0:00:14]} Kf7 {[%emt 0:00:32]} 51. Rb6 {[%emt 0:01:44]} Kg8 {[%emt 0:07:37]} 52. Rb8+ {[%emt 0:01:37]} Kh7 {[%emt 0:00:20]} 53. Kh4 {[%emt 0:00:45]} Nf5+ {[%emt 0:00:06]} 54. Kh3 {[%emt 0:07:28]} Ra3 {[%emt 0:00:12]} 55. Kg2 {[%emt 0:00:02]} Ne3+ {[%emt 0:11:18]} 56. Kg3 {[%emt 0:00:11]} g6 {[%emt 0:00:27]} 57. Rb7+ {[%emt 0:00:40]} Kg8 {[%emt 0:00:22]} 58. h6 {[%emt 0:01:08]} Nc4 {[%emt 0:03:33]} 59. Kf4 {[%emt 0:00:24]} Ra4 {[%emt 0:00:15]} 60. Rg7+ {[%emt 0:01:26]} Kh8 {[%emt 0:00:58]} 61. Nh4 {[%emt 0:02:23]} g5+ {[%emt 0:00:11]} 62. Kxg5 {[%emt 0:00:08]} Ne5 {[%emt 0:00:05]} 63. Kh5 {[%emt 0:00:55]} Ra5 {[%emt 0:00:39]} 64. g5 {[%emt 0:00:11]} Ra4 {[%emt 0:00:08]} 65. Ng6+ {[%emt 0:00:21]} Nxg6 {[%emt 0:00:06]} 66. Rxg6 {[%emt 0:00:06]} Kh7 {[%emt 0:00:02]} 67. Rg7+ {[%emt 0:00:07]} Kh8 {[%emt 0:00:02]} 68. Rb7 {[%emt 0:00:08]} Ra6 {[%emt 0:00:02]} 69. Rb8+ {[%emt 0:00:10]} Kh7 {[%emt 0:00:04]} 70. g6+ {[%emt 0:00:10]} Rxg6 {[%emt 0:00:06]} 71. Rb7+ {[%emt 0:00:05]} Rg7 {[%emt 0:00:05]} 72. Rxg7+ {[%emt 0:00:06]} Kh8 {[%emt 0:00:06]} 73. Ra7 {[%emt 0:00:05]} Kg8 {[%emt 0:00:09]} 74. Kg6 {[%emt 0:00:04]} Kf8 {[%emt 0:00:03]} 75. h7 {[%emt 0:00:07]} 1-0

[Event "EYTCC Open U18 2022"]
[Site "Thessaloniki"]
[Date "2022.07.16"]
[Round "5.10"]
[White "Olsson, William"]
[Black "Deuer, Marius"]
[Result "1-0"]
[ECO "A34"]
[WhiteElo "2284"]
[BlackElo "2338"]
[Annotator "ChessBase"]
[PlyCount "65"]
[EventDate "2022.07.12"]
[EventType "team-tourn"]
[EventCountry "GRE"]
[SourceTitle "playchess.com"]
[Source "ChessBase"]
[SourceQuality "1"]
[WhiteTeam "Sweden"]
[BlackTeam "Germany"]
[WhiteTeamCountry "SWE"]
[BlackTeamCountry "GER"]
[TimeControl "40/5400+30:1800+30"]

1. c4 {[%emt 0:00:06]} Nf6 {[%emt 0:00:05]} 2. g3 {[%emt 0:00:06]} c5 {[%emt 0:00:06]} 3. Nc3 {[%emt 0:00:08]} d5 {[%emt 0:00:06]} 4. cxd5 {[%emt 0:00:03]} Nxd5 {[%emt 0:00:06]} 5. Bg2 {[%emt 0:00:04]} Nc7 {[%emt 0:00:08]} 6. e3 {[%emt 0:00:03]} Nc6 {[%emt 0:09:37]} 7. Nge2 {[%emt 0:00:57]} g6 {[%emt 0:11:54]} 8. d4 {[%emt 0:03:22]} cxd4 {[%emt 0:06:20]} 9. exd4 {[%emt 0:01:33]} Bg7 {[%emt 0:01:01]} 10. d5 {[%emt 0:06:55]} Ne5 {[%emt 0:00:59]} 11. O-O {[%emt 0:01:00]} O-O {[%emt 0:01:36]} 12. Qb3 {[%emt 0:06:04]} Na6 {[%emt 0:14:21]} 13. Be3 {[%emt 0:04:39]} Ng4 {[%emt 0:06:38]} 14. Bf4 {[%emt 0:08:33]} Nc5 {[%emt 0:04:48]} 15. Qc4 {[%emt 0:07:06]} b6 {[%emt 0:02:29]} 16. b4 {[%emt 0:00:38]} Ba6 {[%emt 0:01:39]} 17. b5 {[%emt 0:00:07]} Bb7 {[%emt 0:00:15]} 18. Rad1 {[%emt 0:03:38]} Rc8 {[%emt 0:02:41]} 19. Qb4 {[%emt 0:03:00]} Ne5 {[%emt 0:04:01]} 20. Qb1 {[%emt 0:02:22]} Nc4 {[%emt 0:04:22]} 21. Nd4 {[%emt 0:06:38]} e5 {[%emt 0:09:09]} 22. Nc6 {[%emt 0:01:53]} Qd7 {[%emt 0:00:11]} 23. Bc1 {[%emt 0:00:54]} f5 {[%emt 0:05:34]} 24. Qb4 {[%emt 0:02:12]} Nd6 {[%emt 0:00:03]} 25. Be3 {[%emt 0:01:26]} f4 {[%emt 0:02:04]} 26. Bxc5 {[%emt 0:02:15]} bxc5 {[%emt 0:00:02]} 27. Qxc5 {[%emt 0:00:21]} f3 {[%emt 0:01:25]} 28. Bh1 {[%emt 0:00:25]} e4 {[%emt 0:00:34]} 29. a4 {[%emt 0:05:39]} Rf5 {[%emt 0:06:15]} 30. Rfe1 {[%emt 0:00:41]} Bxc3 {[%emt 0:03:23]} 31. Qxc3 {[%emt 0:00:10]} Rh5 {[%emt 0:00:42]} 32. Bxf3 {[%emt 0:00:10]} exf3 {[%emt 0:01:01]} 33. Re7 {[%emt 0:00:05]} 1-0

[Event "EYTCC Open U18 2022"]
[Site "Thessaloniki"]
[Date "2022.07.16"]
[Round "5.11"]
[White "Colbow, Collin"]
[Black "Falkevall, Axel"]
[Result "1-0"]
[ECO "B23"]
[WhiteElo "2325"]
[BlackElo "2275"]
[Annotator "ChessBase"]
[PlyCount "51"]
[EventDate "2022.07.12"]
[EventType "team-tourn"]
[EventCountry "GRE"]
[SourceTitle "playchess.com"]
[Source "ChessBase"]
[SourceQuality "1"]
[WhiteTeam "Germany"]
[BlackTeam "Sweden"]
[WhiteTeamCountry "GER"]
[BlackTeamCountry "SWE"]
[TimeControl "40/5400+30:1800+30"]

1. e4 {[%emt 0:00:02]} c5 {[%emt 0:00:07]} 2. Nc3 {[%emt 0:00:23]} d6 {[%emt 0:00:13]} 3. d4 {[%emt 0:00:05]} cxd4 {[%emt 0:00:06]} 4. Qxd4 {[%emt 0:00:05]} Nc6 {[%emt 0:00:12]} 5. Qd2 {[%emt 0:00:04]} g6 {[%emt 0:00:49]} 6. b3 {[%emt 0:00:08]} Bh6 {[%emt 0:00:41]} 7. f4 {[%emt 0:00:26]} f5 {[%emt 0:00:28]} 8. Bb2 {[%emt 0:00:07]} Nf6 {[%emt 0:00:16]} 9. e5 {[%emt 0:01:57]} Nxe5 {[%emt 0:15:18]} 10. O-O-O {[%emt 0:01:39]} Bd7 {[%emt 0:06:25]} 11. Nh3 {[%emt 0:01:40]} Bc6 {[%emt 0:18:18]} 12. Kb1 {[%emt 0:11:55]} Qb6 {[%emt 0:06:30]} 13. Qe1 {[%emt 0:04:30]} Neg4 {[%emt 0:01:34]} 14. Bc4 {[%emt 0:33:29]} O-O-O {[%emt 0:08:44]} 15. Ng5 {[%emt 0:05:16]} Bxg5 {[%emt 0:09:17]} 16. fxg5 {[%emt 0:00:46]} Nd7 {[%emt 0:00:31]} 17. Qxe7 {[%emt 0:03:49]} Rhe8 {[%emt 0:05:07]} 18. Qxh7 {[%emt 0:07:53]} Ne3 {[%emt 0:06:23]} 19. Rxd6 {[%emt 0:03:49]} Nxc4 {[%emt 0:07:46]} 20. bxc4 {[%emt 0:00:14]} Qb4 {[%emt 0:03:59]} 21. Qxg6 {[%emt 0:08:01]} Rg8 {[%emt 0:01:41]} 22. Rxc6+ {[%emt 0:04:48]} bxc6 {[%emt 0:00:05]} 23. Qxc6+ {[%emt 0:00:04]} Kb8 {[%emt 0:00:09]} 24. Nd5 {[%emt 0:00:33]} Qa5 {[%emt 0:01:31]} 25. Bc3 {[%emt 0:01:09]} Qa3 {[%emt 0:00:51]} 26. Bb4 {[%emt 0:00:30]} 1-0